[Event "Early-Titled-Tuesday-Blitz-January-30-2024"]
[Site "Chess.com"]
[Date "2024.01.30"]
[Round "7"]
[White "mishanick"]
[Black "Durarbayli"]
[Result "1-0"]
[WhiteElo "3147"]
[BlackElo "2912"]
[TimeControl "180+1"]
[EndTime "9:19:09 PST"]
[Termination "mishanick won on time"]

1. d4 {[%clk 0:03:00.9]} 1... d5 {[%clk 0:03:00.4]} 2. c4 {[%clk 0:03:01.5]}
2... c6 {[%clk 0:03:01.1]} 3. Nc3 {[%clk 0:03:01.8]} 3... Nf6 {[%clk 0:03:01.5]}
4. Nf3 {[%clk 0:03:02.4]} 4... e6 {[%clk 0:03:01.9]} 5. e3 {[%clk 0:03:02.1]}
5... Nbd7 {[%clk 0:03:01.8]} 6. Qc2 {[%clk 0:03:02.2]} 6... Bd6 {[%clk
0:03:01.7]} 7. Be2 {[%clk 0:03:02.6]} 7... O-O {[%clk 0:03:01.3]} 8. O-O {[%clk
0:03:03.3]} 8... dxc4 {[%clk 0:02:57.9]} 9. Bxc4 {[%clk 0:03:04.2]} 9... b5
{[%clk 0:02:56.8]} 10. Bd3 {[%clk 0:03:04.2]} 10... Be7 {[%clk 0:02:42.2]} 11.
e4 {[%clk 0:03:02.9]} 11... h6 {[%clk 0:02:20.6]} 12. e5 {[%clk 0:03:00.2]}
12... Ne8 {[%clk 0:02:20.6]} 13. Be4 {[%clk 0:02:45]} 13... Qb6 {[%clk
0:01:57.7]} 14. Be3 {[%clk 0:02:25.3]} 14... Bb7 {[%clk 0:01:57.8]} 15. d5
{[%clk 0:01:52.1]} 15... Bc5 {[%clk 0:01:57.7]} 16. dxe6 {[%clk 0:01:52.2]}
16... fxe6 {[%clk 0:01:55.4]} 17. Bxc5 {[%clk 0:01:50.3]} 17... Nxc5 {[%clk
0:01:49.7]} 18. Bh7+ {[%clk 0:01:50.1]} 18... Kh8 {[%clk 0:01:49.1]} 19. Nh4
{[%clk 0:01:50]} 19... Rf7 {[%clk 0:01:37]} 20. Bg6 {[%clk 0:01:31.3]} 20... Rf4
{[%clk 0:01:35.8]} 21. g3 {[%clk 0:01:31.1]} 21... Rxh4 {[%clk 0:01:32.5]} 22.
gxh4 {[%clk 0:01:32]} 22... Nc7 {[%clk 0:01:29.9]} 23. Rac1 {[%clk 0:01:25]}
23... Nd7 {[%clk 0:01:02]} 24. Qe2 {[%clk 0:01:24.9]} 24... b4 {[%clk
0:00:54.7]} 25. Rfd1 {[%clk 0:01:09.4]} 25... Nf8 {[%clk 0:00:44.2]} 26. Na4
{[%clk 0:01:05]} 26... Qa5 {[%clk 0:00:40.6]} 27. Bc2 {[%clk 0:01:05.6]} 27...
Nd5 {[%clk 0:00:40.3]} 28. Bb3 {[%clk 0:00:57.2]} 28... Qd8 {[%clk 0:00:35.4]}
29. Qe4 {[%clk 0:00:52.6]} 29... Qe7 {[%clk 0:00:29.1]} 30. Nc5 {[%clk
0:00:52.3]} 30... Qf7 {[%clk 0:00:19.5]} 31. Rd3 {[%clk 0:00:41.7]} 31... Rd8
{[%clk 0:00:10]} 32. Rf3 {[%clk 0:00:37.8]} 32... Qe7 {[%clk 0:00:09]} 33. Bc2
{[%clk 0:00:32.1]} 33... g6 {[%clk 0:00:09.5]} 34. Nxb7 {[%clk 0:00:28.7]} 34...
Qxb7 {[%clk 0:00:09.2]} 35. h5 {[%clk 0:00:29.3]} 35... Qe7 {[%clk 0:00:05.7]}
36. Kh1 {[%clk 0:00:28]} 36... Qg5 {[%clk 0:00:04.5]} 37. Rg1 {[%clk 0:00:28.4]}
37... Qxh5 {[%clk 0:00:04.9]} 38. Rf7 {[%clk 0:00:23.2]} 38... Kg8 {[%clk
0:00:02.9]} 39. Rxa7 {[%clk 0:00:20.1]} 39... g5 {[%clk 0:00:01.9]} 40. Bd1
{[%clk 0:00:17.5]} 1-0

[Event "Early-Titled-Tuesday-Blitz-January-30-2024"]
[Site "Chess.com"]
[Date "2024.01.30"]
[Round "7"]
[White "vladgoncharov"]
[Black "LangesNasenhaar"]
[Result "0-1"]
[WhiteElo "2634"]
[BlackElo "2457"]
[TimeControl "180+1"]
[EndTime "9:19:13 PST"]
[Termination "LangesNasenhaar won on time"]

1. d4 {[%clk 0:03:00.9]} 1... g6 {[%clk 0:02:57.7]} 2. e4 {[%clk 0:02:59.9]}
2... Bg7 {[%clk 0:02:58]} 3. Nc3 {[%clk 0:02:59.1]} 3... c6 {[%clk 0:02:58.4]}
4. Nf3 {[%clk 0:02:57.6]} 4... d5 {[%clk 0:02:57.8]} 5. h3 {[%clk 0:02:57.2]}
5... dxe4 {[%clk 0:02:53.9]} 6. Nxe4 {[%clk 0:02:56.5]} 6... Nf6 {[%clk
0:02:54.6]} 7. Ng3 {[%clk 0:02:45.9]} 7... O-O {[%clk 0:02:53.1]} 8. Be2 {[%clk
0:02:44.5]} 8... Nbd7 {[%clk 0:02:50.7]} 9. O-O {[%clk 0:02:43.7]} 9... Qc7
{[%clk 0:02:49.9]} 10. c4 {[%clk 0:02:41]} 10... e5 {[%clk 0:02:44.2]} 11. Bg5
{[%clk 0:02:10.8]} 11... h6 {[%clk 0:02:36.2]} 12. Bxf6 {[%clk 0:02:08.4]} 12...
Bxf6 {[%clk 0:02:35.1]} 13. d5 {[%clk 0:02:06.9]} 13... Bg7 {[%clk 0:02:13]} 14.
dxc6 {[%clk 0:02:02]} 14... Qxc6 {[%clk 0:02:08.3]} 15. Ne1 {[%clk 0:01:50.3]}
15... e4 {[%clk 0:02:00.9]} 16. Qc1 {[%clk 0:01:44.1]} 16... Nc5 {[%clk
0:01:52.3]} 17. Nc2 {[%clk 0:01:42.3]} 17... Nd3 {[%clk 0:01:26.4]} 18. Bxd3
{[%clk 0:01:41.7]} 18... exd3 {[%clk 0:01:26.7]} 19. Nb4 {[%clk 0:01:42.3]}
19... Qd6 {[%clk 0:01:17.5]} 20. Qd2 {[%clk 0:01:34.7]} 20... Be6 {[%clk
0:01:11.8]} 21. Rac1 {[%clk 0:01:33.2]} 21... Rfd8 {[%clk 0:01:07.7]} 22. Rfd1
{[%clk 0:01:28.8]} 22... Rac8 {[%clk 0:00:58.1]} 23. b3 {[%clk 0:01:24.8]} 23...
h5 {[%clk 0:00:50.3]} 24. Nxd3 {[%clk 0:01:23]} 24... h4 {[%clk 0:00:48.4]} 25.
Ne4 {[%clk 0:01:21.9]} 25... Qd4 {[%clk 0:00:44]} 26. Ng5 {[%clk 0:01:21.1]}
26... Bf5 {[%clk 0:00:42.5]} 27. Qf4 {[%clk 0:00:22]} 27... Qxf4 {[%clk
0:00:42.4]} 28. Nxf4 {[%clk 0:00:20.1]} 28... Bh6 {[%clk 0:00:42.9]} 29. Nd5
{[%clk 0:00:14.6]} 29... Bxg5 {[%clk 0:00:40.1]} 30. f4 {[%clk 0:00:15.3]} 30...
Rxd5 {[%clk 0:00:30.5]} 31. Rxd5 {[%clk 0:00:14.2]} 31... Bxf4 {[%clk
0:00:30.7]} 32. Rcd1 {[%clk 0:00:14.3]} 32... Kg7 {[%clk 0:00:27.6]} 33. Kf2
{[%clk 0:00:12.5]} 33... Bg3+ {[%clk 0:00:26.2]} 34. Ke2 {[%clk 0:00:07]} 34...
Re8+ {[%clk 0:00:25.1]} 35. Kd2 {[%clk 0:00:06.9]} 35... Bf4+ {[%clk 0:00:21.5]}
36. Kc3 {[%clk 0:00:07]} 36... Re3+ {[%clk 0:00:19.6]} 37. Kb4 {[%clk
0:00:06.5]} 37... Re2 {[%clk 0:00:16.2]} 38. Rf1 {[%clk 0:00:06.5]} 38... Bg3
{[%clk 0:00:14.2]} 0-1

[Event "Early-Titled-Tuesday-Blitz-January-30-2024"]
[Site "Chess.com"]
[Date "2024.01.30"]
[Round "7"]
[White "margarita_2703"]
[Black "Caroexpert"]
[Result "0-1"]
[WhiteElo "2341"]
[BlackElo "2572"]
[TimeControl "180+1"]
[EndTime "9:19:13 PST"]
[Termination "Caroexpert won by checkmate"]

1. e4 {[%clk 0:03:00.9]} 1... Nc6 {[%clk 0:02:55.6]} 2. Nf3 {[%clk 0:02:55.9]}
2... d6 {[%clk 0:02:53.8]} 3. h3 {[%clk 0:02:55.1]} 3... Nf6 {[%clk 0:02:47]} 4.
Nc3 {[%clk 0:02:54.2]} 4... e5 {[%clk 0:02:44.7]} 5. d4 {[%clk 0:02:50.5]} 5...
exd4 {[%clk 0:02:42]} 6. Nxd4 {[%clk 0:02:51.4]} 6... Be7 {[%clk 0:02:35.6]} 7.
Be3 {[%clk 0:02:47.6]} 7... O-O {[%clk 0:02:35.1]} 8. Bd3 {[%clk 0:02:30.8]}
8... a6 {[%clk 0:02:18.1]} 9. O-O {[%clk 0:02:29.7]} 9... Nxd4 {[%clk
0:02:17.7]} 10. Bxd4 {[%clk 0:02:29.9]} 10... c5 {[%clk 0:02:17.9]} 11. Be3
{[%clk 0:02:24.8]} 11... b5 {[%clk 0:02:17.8]} 12. Re1 {[%clk 0:02:05.4]} 12...
Bb7 {[%clk 0:02:12.8]} 13. Nd5 {[%clk 0:02:00.2]} 13... Nxd5 {[%clk 0:02:08.3]}
14. exd5 {[%clk 0:02:01.1]} 14... Bf6 {[%clk 0:02:08.5]} 15. c3 {[%clk
0:02:00.8]} 15... c4 {[%clk 0:01:59.6]} 16. Bb1 {[%clk 0:01:52]} 16... Re8
{[%clk 0:01:59.3]} 17. a4 {[%clk 0:01:49.3]} 17... Qd7 {[%clk 0:01:58.6]} 18.
axb5 {[%clk 0:01:48.5]} 18... Qxb5 {[%clk 0:01:58.6]} 19. Qh5 {[%clk 0:01:24.5]}
19... g6 {[%clk 0:01:56.3]} 20. Qf3 {[%clk 0:01:24.5]} 20... Bg7 {[%clk
0:01:53.4]} 21. Rd1 {[%clk 0:00:52.5]} 21... Qxb2 {[%clk 0:01:42.1]} 22. Be4
{[%clk 0:00:51.7]} 22... Qxc3 {[%clk 0:01:38.6]} 23. Rab1 {[%clk 0:00:51.4]}
23... Re7 {[%clk 0:01:23.1]} 24. Rdc1 {[%clk 0:00:41.8]} 24... Qe5 {[%clk
0:01:13.6]} 25. Rxc4 {[%clk 0:00:38]} 25... f5 {[%clk 0:01:13.6]} 26. Rxb7
{[%clk 0:00:31.4]} 26... Rxb7 {[%clk 0:01:03.7]} 27. Bd3 {[%clk 0:00:27.4]}
27... a5 {[%clk 0:01:01.4]} 28. g3 {[%clk 0:00:21.7]} 28... a4 {[%clk
0:01:01.2]} 29. Bd4 {[%clk 0:00:21.5]} 29... Qe1+ {[%clk 0:01:00.1]} 30. Kg2
{[%clk 0:00:22]} 30... Bxd4 {[%clk 0:00:51.5]} 31. Rxd4 {[%clk 0:00:22.9]} 31...
Qe5 {[%clk 0:00:48.6]} 32. Rc4 {[%clk 0:00:18.9]} 32... a3 {[%clk 0:00:48.9]}
33. g4 {[%clk 0:00:09.4]} 33... a2 {[%clk 0:00:47.5]} 34. gxf5 {[%clk
0:00:09.6]} 34... a1=Q {[%clk 0:00:39.4]} 35. fxg6 {[%clk 0:00:10.5]} 35... hxg6
{[%clk 0:00:36.2]} 36. Rg4 {[%clk 0:00:10.7]} 36... Rg7 {[%clk 0:00:34.8]} 37.
Bxg6 {[%clk 0:00:03.7]} 37... Rf8 {[%clk 0:00:35.1]} 38. Qd3 {[%clk 0:00:03.3]}
38... Qae1 {[%clk 0:00:25.2]} 39. Be4 {[%clk 0:00:02.9]} 39... Rxf2# {[%clk
0:00:23.7]} 0-1

[Event "Early-Titled-Tuesday-Blitz-January-30-2024"]
[Site "Chess.com"]
[Date "2024.01.30"]
[Round "7"]
[White "atalz0"]
[Black "alexrustemov"]
[Result "0-1"]
[WhiteElo "2465"]
[BlackElo "2767"]
[TimeControl "180+1"]
[EndTime "9:19:14 PST"]
[Termination "alexrustemov won on time"]

1. d4 {[%clk 0:03:00.9]} 1... g6 {[%clk 0:02:56.7]} 2. e4 {[%clk 0:03:00.5]}
2... Bg7 {[%clk 0:02:57.1]} 3. Nf3 {[%clk 0:02:59.6]} 3... d6 {[%clk 0:02:56.8]}
4. Bc4 {[%clk 0:02:59.7]} 4... e6 {[%clk 0:02:55.3]} 5. O-O {[%clk 0:02:59]}
5... Ne7 {[%clk 0:02:55.8]} 6. Re1 {[%clk 0:02:58.6]} 6... Nd7 {[%clk
0:02:55.9]} 7. h3 {[%clk 0:02:55.1]} 7... a6 {[%clk 0:02:55.6]} 8. c3 {[%clk
0:02:55.3]} 8... b5 {[%clk 0:02:53.1]} 9. Bf1 {[%clk 0:02:55.1]} 9... Bb7 {[%clk
0:02:53.4]} 10. a4 {[%clk 0:02:55.7]} 10... c6 {[%clk 0:02:47.7]} 11. Bf4 {[%clk
0:02:53.3]} 11... Qc7 {[%clk 0:02:46.2]} 12. Nbd2 {[%clk 0:02:45.6]} 12... O-O
{[%clk 0:02:45.8]} 13. Nb3 {[%clk 0:02:32.2]} 13... h6 {[%clk 0:02:35.1]} 14.
Nc5 {[%clk 0:02:16]} 14... Nc8 {[%clk 0:01:58.3]} 15. Qd2 {[%clk 0:01:48.2]}
15... Kh7 {[%clk 0:01:57.2]} 16. Bh2 {[%clk 0:01:32.9]} 16... Rd8 {[%clk
0:01:51.4]} 17. Nxb7 {[%clk 0:01:28.1]} 17... Qxb7 {[%clk 0:01:51.1]} 18. axb5
{[%clk 0:01:28.2]} 18... axb5 {[%clk 0:01:50.2]} 19. Rxa8 {[%clk 0:01:26.6]}
19... Qxa8 {[%clk 0:01:51.1]} 20. d5 {[%clk 0:01:21.8]} 20... Nc5 {[%clk
0:01:39.4]} 21. b4 {[%clk 0:01:14.3]} 21... Na4 {[%clk 0:01:34.4]} 22. Re3
{[%clk 0:01:04.1]} 22... cxd5 {[%clk 0:01:26.3]} 23. exd5 {[%clk 0:00:36.9]}
23... Qxd5 {[%clk 0:01:25.7]} 24. Qxd5 {[%clk 0:00:27.5]} 24... exd5 {[%clk
0:01:26.6]} 25. Bxb5 {[%clk 0:00:22.9]} 25... Nxc3 {[%clk 0:01:25.9]} 26. Ba6
{[%clk 0:00:22.1]} 26... Ne4 {[%clk 0:01:11]} 27. Rd3 {[%clk 0:00:16.6]} 27...
Nb6 {[%clk 0:01:08.1]} 28. Nd2 {[%clk 0:00:13.9]} 28... Nxd2 {[%clk 0:01:00]}
29. Rxd2 {[%clk 0:00:14]} 29... Bc3 {[%clk 0:01:00.7]} 30. Rd3 {[%clk 0:00:11]}
30... Bxb4 {[%clk 0:01:01]} 31. Bg3 {[%clk 0:00:08.8]} 31... Bc5 {[%clk
0:00:59.9]} 32. Bb5 {[%clk 0:00:06.4]} 32... d4 {[%clk 0:00:57.1]} 33. Rf3
{[%clk 0:00:06.3]} 33... Kg7 {[%clk 0:00:56.2]} 34. h4 {[%clk 0:00:05.7]} 34...
h5 {[%clk 0:00:53.8]} 35. Bf4 {[%clk 0:00:05.9]} 35... Nd5 {[%clk 0:00:48]} 36.
Bg5 {[%clk 0:00:05.8]} 36... f6 {[%clk 0:00:47.9]} 37. Bd2 {[%clk 0:00:05.8]}
37... Bb4 {[%clk 0:00:38.8]} 38. Bxb4 {[%clk 0:00:03.6]} 38... Nxb4 {[%clk
0:00:38.7]} 39. Rf4 {[%clk 0:00:03.4]} 39... Rb8 {[%clk 0:00:33]} 40. Bf1 {[%clk
0:00:02.8]} 40... Nc6 {[%clk 0:00:31.2]} 41. Re4 {[%clk 0:00:01.6]} 41... Rb1
{[%clk 0:00:24.8]} 42. g3 {[%clk 0:00:01.6]} 42... d3 {[%clk 0:00:21.7]} 0-1

[Event "Early-Titled-Tuesday-Blitz-January-30-2024"]
[Site "Chess.com"]
[Date "2024.01.30"]
[Round "7"]
[White "BardArtem"]
[Black "viktorgen2021"]
[Result "1-0"]
[WhiteElo "2781"]
[BlackElo "2578"]
[TimeControl "180+1"]
[EndTime "9:19:19 PST"]
[Termination "BardArtem won on time"]

1. e4 {[%clk 0:03:00.9]} 1... g6 {[%clk 0:02:59.9]} 2. d4 {[%clk 0:03:00.3]}
2... Bg7 {[%clk 0:02:59.3]} 3. Nc3 {[%clk 0:03:00.9]} 3... d6 {[%clk 0:02:59.6]}
4. Nf3 {[%clk 0:03:00.1]} 4... Nf6 {[%clk 0:03:00]} 5. Bg5 {[%clk 0:02:58.5]}
5... O-O {[%clk 0:02:59.9]} 6. Qd2 {[%clk 0:02:54.8]} 6... c6 {[%clk 0:03:00.1]}
7. h4 {[%clk 0:02:45.8]} 7... h5 {[%clk 0:02:59.5]} 8. Bd3 {[%clk 0:02:42.1]}
8... Bg4 {[%clk 0:02:56]} 9. O-O-O {[%clk 0:02:40.9]} 9... Bxf3 {[%clk
0:02:55.3]} 10. gxf3 {[%clk 0:02:41.8]} 10... e5 {[%clk 0:02:55.4]} 11. dxe5
{[%clk 0:02:38.9]} 11... dxe5 {[%clk 0:02:56.3]} 12. f4 {[%clk 0:02:39.8]} 12...
Nbd7 {[%clk 0:02:43.9]} 13. f5 {[%clk 0:02:23.3]} 13... Qa5 {[%clk 0:02:42.7]}
14. Rhg1 {[%clk 0:02:14]} 14... Kh7 {[%clk 0:02:42.3]} 15. Kb1 {[%clk
0:01:59.1]} 15... Nc5 {[%clk 0:02:34.1]} 16. Bxf6 {[%clk 0:01:31.7]} 16... Bxf6
{[%clk 0:02:32.4]} 17. Nd5 {[%clk 0:01:32]} 17... Qd8 {[%clk 0:02:18.8]} 18. Qe3
{[%clk 0:01:20.4]} 18... cxd5 {[%clk 0:01:58.4]} 19. Qxc5 {[%clk 0:01:19.4]}
19... d4 {[%clk 0:01:58.8]} 20. f4 {[%clk 0:01:13.3]} 20... Rc8 {[%clk
0:01:42.6]} 21. Qb5 {[%clk 0:01:12]} 21... a6 {[%clk 0:01:38]} 22. Qxb7 {[%clk
0:01:04.5]} 22... Qd6 {[%clk 0:01:38.1]} 23. fxg6+ {[%clk 0:01:02.7]} 23... Kh6
{[%clk 0:01:29.8]} 24. fxe5 {[%clk 0:00:54.6]} 24... Qxe5 {[%clk 0:01:26.1]} 25.
g7 {[%clk 0:00:46.4]} 25... Bxg7 {[%clk 0:01:18.2]} 26. Rdf1 {[%clk 0:00:46.4]}
26... Qe6 {[%clk 0:00:42.2]} 27. e5 {[%clk 0:00:38.3]} 27... Bxe5 {[%clk
0:00:34.9]} 28. Qe4 {[%clk 0:00:32.4]} 28... f5 {[%clk 0:00:32.6]} 29. Qf3
{[%clk 0:00:10.6]} 29... Rb8 {[%clk 0:00:07.9]} 30. Rg5 {[%clk 0:00:08.9]} 30...
Qe8 {[%clk 0:00:08.2]} 31. Be2 {[%clk 0:00:05.7]} 31... d3 {[%clk 0:00:06.4]}
32. Rxh5+ {[%clk 0:00:05.5]} 32... Kg7 {[%clk 0:00:06.3]} 33. Rg1+ {[%clk
0:00:05.4]} 33... Kf7 {[%clk 0:00:05.6]} 34. Qd5+ {[%clk 0:00:05.7]} 34... Qe6
{[%clk 0:00:01.9]} 35. Rh7+ {[%clk 0:00:06.2]} 1-0

[Event "Early-Titled-Tuesday-Blitz-January-30-2024"]
[Site "Chess.com"]
[Date "2024.01.30"]
[Round "7"]
[White "jaskol95"]
[Black "SirGerhard"]
[Result "0-1"]
[WhiteElo "2536"]
[BlackElo "2749"]
[TimeControl "180+1"]
[EndTime "9:19:21 PST"]
[Termination "SirGerhard won by resignation"]

1. d4 {[%clk 0:03:00.9]} 1... Nf6 {[%clk 0:02:59.9]} 2. Nc3 {[%clk 0:03:00.6]}
2... g6 {[%clk 0:03:00]} 3. e4 {[%clk 0:03:00.3]} 3... d5 {[%clk 0:03:00.5]} 4.
exd5 {[%clk 0:02:55.1]} 4... Nxd5 {[%clk 0:03:00.7]} 5. Bc4 {[%clk 0:02:52.8]}
5... Nb6 {[%clk 0:03:00.6]} 6. Bb3 {[%clk 0:02:53.2]} 6... Bg7 {[%clk
0:03:01.1]} 7. Nf3 {[%clk 0:02:53.3]} 7... O-O {[%clk 0:02:58.4]} 8. Be3 {[%clk
0:02:51.4]} 8... Nc6 {[%clk 0:02:52.8]} 9. Qd2 {[%clk 0:02:45.8]} 9... Na5
{[%clk 0:02:34.8]} 10. Qe2 {[%clk 0:02:36.7]} 10... Nxb3 {[%clk 0:02:28.4]} 11.
axb3 {[%clk 0:02:36.9]} 11... Nd5 {[%clk 0:02:28.6]} 12. O-O {[%clk 0:02:34.4]}
12... Bf5 {[%clk 0:02:13.2]} 13. Rfe1 {[%clk 0:02:05.8]} 13... Nb4 {[%clk
0:02:11.6]} 14. Rec1 {[%clk 0:02:00]} 14... a5 {[%clk 0:02:08.8]} 15. h3 {[%clk
0:01:56.5]} 15... b6 {[%clk 0:01:57.2]} 16. Ne5 {[%clk 0:01:47.4]} 16... c5
{[%clk 0:01:44.5]} 17. Nb5 {[%clk 0:01:33.8]} 17... cxd4 {[%clk 0:01:36.1]} 18.
Bxd4 {[%clk 0:01:32.8]} 18... Rc8 {[%clk 0:01:24.6]} 19. c4 {[%clk 0:01:25.3]}
19... f6 {[%clk 0:01:05.4]} 20. Nf3 {[%clk 0:01:21.2]} 20... e5 {[%clk
0:01:05.4]} 21. Bc3 {[%clk 0:01:21]} 21... Qd3 {[%clk 0:01:00.2]} 22. Qxd3
{[%clk 0:01:12.4]} 22... Nxd3 {[%clk 0:01:00.5]} 23. Rd1 {[%clk 0:01:13]} 23...
Rfd8 {[%clk 0:00:58.6]} 24. Ne1 {[%clk 0:01:02.7]} 24... Nc5 {[%clk 0:00:46.9]}
25. Nd6 {[%clk 0:00:50]} 25... Rb8 {[%clk 0:00:47]} 26. Nxf5 {[%clk 0:00:50]}
26... gxf5 {[%clk 0:00:47.1]} 27. b4 {[%clk 0:00:48]} 27... axb4 {[%clk
0:00:47.3]} 28. Bxb4 {[%clk 0:00:48.2]} 28... Nb3 {[%clk 0:00:47.6]} 29. Rab1
{[%clk 0:00:41]} 29... Rbc8 {[%clk 0:00:42.1]} 30. Rxd8+ {[%clk 0:00:17.4]}
30... Rxd8 {[%clk 0:00:42.1]} 31. Kf1 {[%clk 0:00:17.8]} 31... Rd4 {[%clk
0:00:41.2]} 32. Bc3 {[%clk 0:00:17.4]} 32... Rxc4 {[%clk 0:00:41.1]} 33. Ke2
{[%clk 0:00:17.6]} 33... Kf7 {[%clk 0:00:35.9]} 34. Rd1 {[%clk 0:00:17.6]} 34...
Ke7 {[%clk 0:00:34.2]} 35. Nd3 {[%clk 0:00:17.6]} 35... Nd4+ {[%clk 0:00:32]}
36. Kf1 {[%clk 0:00:16.8]} 36... Nc6 {[%clk 0:00:31.5]} 37. Ra1 {[%clk
0:00:13.8]} 37... Bh6 {[%clk 0:00:27.5]} 38. Ra6 {[%clk 0:00:13.4]} 38... e4
{[%clk 0:00:27.4]} 39. Ne1 {[%clk 0:00:11.5]} 39... b5 {[%clk 0:00:27.5]} 40.
Rb6 {[%clk 0:00:11.6]} 40... b4 {[%clk 0:00:27.3]} 41. Rb7+ {[%clk 0:00:04.3]}
41... Ke6 {[%clk 0:00:22.5]} 42. Rxh7 {[%clk 0:00:04.8]} 42... Bc1 {[%clk
0:00:22.7]} 43. b3 {[%clk 0:00:05.7]} 43... Rxc3 {[%clk 0:00:22.7]} 44. g4
{[%clk 0:00:01.7]} 44... f4 {[%clk 0:00:22]} 45. h4 {[%clk 0:00:02.2]} 45... f3
{[%clk 0:00:22.4]} 46. h5 {[%clk 0:00:02.9]} 46... Bd2 {[%clk 0:00:22.9]} 47. h6
{[%clk 0:00:03.3]} 47... Rc1 {[%clk 0:00:23]} 48. Re7+ {[%clk 0:00:03.8]} 48...
Nxe7 {[%clk 0:00:22.5]} 0-1

[Event "Early-Titled-Tuesday-Blitz-January-30-2024"]
[Site "Chess.com"]
[Date "2024.01.30"]
[Round "7"]
[White "snowlord"]
[Black "dropstoneDP"]
[Result "0-1"]
[WhiteElo "2852"]
[BlackElo "3047"]
[TimeControl "180+1"]
[EndTime "9:19:22 PST"]
[Termination "dropstoneDP won on time"]

1. g3 {[%clk 0:03:00.9]} 1... e5 {[%clk 0:02:58.9]} 2. c4 {[%clk 0:03:00.3]}
2... Nf6 {[%clk 0:02:59.3]} 3. Bg2 {[%clk 0:02:58.5]} 3... d5 {[%clk 0:02:59.7]}
4. cxd5 {[%clk 0:02:59.4]} 4... Nxd5 {[%clk 0:03:00.3]} 5. Nc3 {[%clk
0:02:58.4]} 5... Nb6 {[%clk 0:03:00.2]} 6. d3 {[%clk 0:02:59]} 6... Be7 {[%clk
0:02:59.9]} 7. Be3 {[%clk 0:02:59.7]} 7... O-O {[%clk 0:02:58.8]} 8. Rc1 {[%clk
0:03:00.4]} 8... c6 {[%clk 0:02:55.6]} 9. h4 {[%clk 0:03:00.8]} 9... Re8 {[%clk
0:02:51.6]} 10. Nf3 {[%clk 0:03:00.9]} 10... N8d7 {[%clk 0:02:49.8]} 11. Qc2
{[%clk 0:03:01.4]} 11... Bf8 {[%clk 0:02:45.6]} 12. Ng5 {[%clk 0:02:46]} 12...
h6 {[%clk 0:02:43.8]} 13. Nge4 {[%clk 0:01:56.3]} 13... Nd5 {[%clk 0:02:32.4]}
14. Bd2 {[%clk 0:01:42.6]} 14... N7b6 {[%clk 0:02:28.6]} 15. Nxd5 {[%clk
0:01:35.3]} 15... cxd5 {[%clk 0:02:29.5]} 16. Nc5 {[%clk 0:01:34.3]} 16... Bg4
{[%clk 0:02:20.5]} 17. Nxb7 {[%clk 0:01:27.8]} 17... Qe7 {[%clk 0:02:17.8]} 18.
Na5 {[%clk 0:01:26.6]} 18... Rac8 {[%clk 0:02:16.4]} 19. Qb1 {[%clk 0:01:22.4]}
19... Rxc1+ {[%clk 0:02:15.8]} 20. Qxc1 {[%clk 0:01:23.3]} 20... Rc8 {[%clk
0:02:15.5]} 21. Qd1 {[%clk 0:01:18.6]} 21... Qc5 {[%clk 0:02:07.3]} 22. O-O
{[%clk 0:01:13.9]} 22... Qc2 {[%clk 0:02:03.6]} 23. f3 {[%clk 0:01:00.2]} 23...
Be6 {[%clk 0:01:57.9]} 24. Bc3 {[%clk 0:01:00.7]} 24... Qxd1 {[%clk 0:01:46.5]}
25. Rxd1 {[%clk 0:01:01.6]} 25... d4 {[%clk 0:01:47.1]} 26. Bd2 {[%clk
0:01:02.3]} 26... Rc2 {[%clk 0:01:43.7]} 27. b4 {[%clk 0:00:59]} 27... Rxd2
{[%clk 0:01:41.7]} 28. Rxd2 {[%clk 0:00:57.9]} 28... Bxb4 {[%clk 0:01:42.1]} 29.
Rc2 {[%clk 0:00:40.5]} 29... Bxa5 {[%clk 0:01:41.6]} 30. Rc5 {[%clk 0:00:41.3]}
30... Bd2 {[%clk 0:01:35.2]} 31. Rxe5 {[%clk 0:00:41.3]} 31... Bxa2 {[%clk
0:01:32.2]} 32. f4 {[%clk 0:00:41.9]} 32... Be6 {[%clk 0:01:26.1]} 33. f5 {[%clk
0:00:38.7]} 33... Bd7 {[%clk 0:01:25]} 34. Rc5 {[%clk 0:00:26.3]} 34... Kf8
{[%clk 0:01:08.2]} 35. g4 {[%clk 0:00:03.8]} 35... Ke7 {[%clk 0:01:06]} 36. Rc7
{[%clk 0:00:04.1]} 36... a5 {[%clk 0:01:04.7]} 37. Ra7 {[%clk 0:00:04.5]} 37...
Kd6 {[%clk 0:00:53.7]} 38. g5 {[%clk 0:00:05.1]} 38... hxg5 {[%clk 0:00:52.8]}
39. hxg5 {[%clk 0:00:06]} 39... Bxf5 {[%clk 0:00:44.7]} 40. Rxf7 {[%clk
0:00:05.4]} 40... g6 {[%clk 0:00:45.3]} 41. Rf6+ {[%clk 0:00:04.6]} 41... Kc5
{[%clk 0:00:45.8]} 42. Be4 {[%clk 0:00:05.2]} 42... Bxg5 {[%clk 0:00:43.9]} 43.
Rc6+ {[%clk 0:00:04.2]} 43... Kb5 {[%clk 0:00:44.4]} 44. Rd6 {[%clk 0:00:03.8]}
44... Bf4 {[%clk 0:00:40.7]} 45. Rd8 {[%clk 0:00:01.6]} 45... Be3+ {[%clk
0:00:39]} 46. Kg2 {[%clk 0:00:01.5]} 46... a4 {[%clk 0:00:39.9]} 47. Bxf5 {[%clk
0:00:01.7]} 47... gxf5 {[%clk 0:00:39.8]} 48. Rf8 {[%clk 0:00:02.3]} 48... a3
{[%clk 0:00:39.9]} 49. Rxf5+ {[%clk 0:00:02.6]} 49... Kb4 {[%clk 0:00:40.5]} 50.
Rf6 {[%clk 0:00:02.7]} 50... Na4 {[%clk 0:00:40.6]} 0-1